fUSD/lending_fUSD_20251101
["ID","MTS","AMOUNT","RATE_DAILY","PERIOD"]
[392816983,1761990637924,-150.0,0.00014999,2]
[392816984,1761990637933,-150.0,0.00014999,2]
[392816986,1761990637943,-150.0,0.00014999,2]
[392816988,1761990637952,-150.0,0.00014999,2]
[392816990,1761990637962,-150.0,0.00014999,2]
[392816992,1761990637971,-150.0,0.00014999,2]
[392816994,1761990637981,-2636.6316431,0.00014999,2]
[392816996,1761990637990,-7022.6163919,0.00014999,2]
[392816998,1761990637999,-1000.6278,0.00014999,2]
[392817000,1761990638008,-150.0,0.00014999,2]
[392817002,1761990638018,-150.0,0.00014999,2]
[392817004,1761990638027,-150.0,0.00014999,2]
[392817006,1761990638036,-150.0,0.00014999,2]
[392817008,1761990638045,-500.0,0.00014999,2]
[392817010,1761990638055,-500.0,0.00014999,2]
[392817012,1761990638064,-516.00192321,0.00014999,2]
[392817014,1761990638074,-150.0,0.00014999,2]
[392817016,1761990638083,-150.0,0.00014999,2]
[392817018,1761990638092,-500.0,0.00014999,2]
[392817020,1761990638102,-150.0,0.00014999,2]
[392817022,1761990638111,-150.0,0.00014999,2]
[392817024,1761990638120,-500.0,0.00014999,2]
[392817026,1761990638129,-150.0,0.00014999,2]
[392817028,1761990638138,-150.0,0.00014999,2]
[392817030,1761990638147,-150.0,0.00014999,2]
[392817032,1761990638156,-500.0,0.00014999,2]
[392817034,1761990638165,-150.0,0.00014999,2]
[392817036,1761990638175,-150.0,0.00014999,2]
[392817038,1761990638184,-150.0,0.00014999,2]
[392817040,1761990638194,-150.0,0.00014999,2]
[392817042,1761990638203,-150.0,0.00014999,2]
[392817044,1761990638212,-150.0,0.00014999,2]
[392817065,1761990638401,-150.0,0.00014999,2]
[392817066,1761990638414,-150.0,0.00014999,2]
[392817068,1761990638426,-150.0,0.00014999,2]
[392817071,1761990638436,-666.0,0.00014999,2]
[392817073,1761990638446,-3783.0,0.00015,2]
[392817075,1761990638456,-2319646.10805136,0.00015,2]
[392817077,1761990638470,-1710.44626084,0.00015,2]
[392817079,1761990638482,-18534.0244577,0.00015,2]
[392817081,1761990638494,-10095.54179108,0.00015,2]
[392817083,1761990638505,-5708.73461318,0.00015,2]
[392817085,1761990638518,-327.83202511,0.00015,2]
[392817087,1761990638529,-1294.87537472,0.00015,2]
[392817182,1761990640242,-1.6e-07,0.00014999,2]
[392817183,1761990640276,-149.99999984,0.00014999,2]
[392817184,1761990640287,-150.0,0.00014999,2]
[392817185,1761990640297,-150.0,0.00014999,2]
[392817186,1761990640306,-567611.96278667,0.00015,2]
[392817187,1761990640369,-637.8225395,0.00015,2]
[392817188,1761990640389,-893.528417,0.00015,2]
[392817207,1761990642908,-150.0,0.00014999,2]
[392817208,1761990642920,-221552.74024012,0.00015,2]
[392817209,1761990642932,-390468.86139831,0.00015,2]
[392817210,1761990643202,-41481.02387669,0.00015,2]
[392817212,1761990646056,-303.97328442,0.00015,2]
[392817218,1761990649889,151.0,0.00014932,2]
[392817219,1761990650268,9849.01,0.00014355,2]
[392817220,1761990650292,10000.01,0.00014355,2]
[392817221,1761990650314,10000.01,0.00014355,2]
[392817222,1761990650339,10000.01,0.00014355,2]
[392817223,1761990650362,10000.01,0.00014355,2]
[392817224,1761990650385,10000.01,0.00014355,2]
[392817225,1761990650411,10000.01,0.00014355,2]
[392817226,1761990650433,10000.01,0.00014355,2]
[392817227,1761990650455,10000.01,0.00014355,2]
[392817228,1761990650478,10000.01,0.00014355,2]
[392817229,1761990652266,-10000.01,0.00014355,2]
[392817230,1761990652417,-10000.01,0.00014355,2]
[392817231,1761990652607,-10000.01,0.00014355,2]
[392817232,1761990652740,-10000.01,0.00014355,2]
[392817233,1761990652848,-10000.01,0.00014355,2]
[392817234,1761990656752,-1193.358513,0.00014283,2]
[392817235,1761990656785,-7613.292974,0.00014355,2]
[392817236,1761990656858,-10000.01,0.00014355,2]
[392817237,1761990656974,-10000.01,0.00014355,2]
[392817238,1761990657092,-10000.01,0.00014355,2]
[392817239,1761990657204,-10000.01,0.00014355,2]
[392817240,1761990657365,-10000.01,0.00014355,2]
[392817241,1761990657487,-10000.01,0.00014355,2]
[392817242,1761990657622,-10000.01,0.00014355,2]
[392817243,1761990657734,-10000.01,0.00014355,2]
[392817244,1761990657869,-10000.01,0.00014355,2]
[392817245,1761990658013,-10000.01,0.00014355,2]
[392817246,1761990658114,-10000.01,0.00014355,2]
[392817247,1761990658251,-10000.01,0.00014355,2]
[392817248,1761990658374,-10000.01,0.00014355,2]
[392817249,1761990658479,-10000.01,0.00014355,2]
[392817250,1761990659783,-10000.01,0.00014355,2]
[392817251,1761990659892,-10000.01,0.00014355,2]
[392817252,1761990660008,-10000.01,0.00014355,2]
[392817253,1761990660142,-10000.01,0.00014355,2]
[392817254,1761990660261,-10000.01,0.00014355,2]
[392817255,1761990660378,-10000.01,0.00014355,2]
[392817256,1761990660485,-10000.01,0.00014355,2]
[392817257,1761990660617,-10000.01,0.00014355,2]
[392817258,1761990660731,-10000.01,0.00014355,2]
[392817259,1761990660844,-10000.01,0.00014355,2]
[392817260,1761990660958,-10000.01,0.00014355,2]
[392817261,1761990661090,-10000.01,0.00014355,2]
[392817262,1761990661224,-2537.297026,0.00014355,2]
[392817263,1761990661597,150.0,0.00014354,2]
[392817264,1761990662156,300.0,0.00014354,2]
[392817265,1761990668851,-151.0,0.00014959,2]
[392817266,1761990670167,423.69,0.00014922,2]
[392817267,1761990673804,666.0,0.00014999,2]
[392817268,1761990677772,151.0,0.00014996,2]
[392817269,1761990683279,151.0,0.00014988,2]
[392817270,1761990684032,3428.90423,0.00014866,2]
[392817271,1761990692820,1478.816,0.000147,2]
[392817272,1761990692868,162.27,0.000147,2]
[392817274,1761990710091,500.0,0.00014454,2]
[392817275,1761990710134,500.0,0.00014454,2]
[392817276,1761990710174,500.0,0.00014454,2]
[392817277,1761990710215,500.0,0.00014454,2]
[392817278,1761990710258,500.0,0.00014454,2]
[392817279,1761990710302,500.0,0.00014454,2]
[392817280,1761990710591,500.0,0.00014454,2]
[392817281,1761990710630,500.0,0.00014454,2]
[392817282,1761990710668,500.0,0.00014454,2]
[392817283,1761990710706,279.01977,0.00014454,2]
[392817284,1761990710731,220.98023,0.00014454,2]
[392817285,1761990710774,500.0,0.00014454,2]
[392817286,1761990710812,500.0,0.00014454,2]
[392817287,1761990710854,500.0,0.00014454,2]
[392817288,1761990710895,500.0,0.00014454,2]
[392817289,1761990710935,500.0,0.00014454,2]
[392817290,1761990710974,500.0,0.00014454,2]
[392817291,1761990711013,473.32572706,0.00014454,2]
[392817292,1761990711050,500.0,0.00014454,2]
[392817293,1761990717825,357.2346661,0.00014999,2]
[392817294,1761990725846,982.04624044,0.00014985,2]
[392817295,1761990726929,322.6107,0.00014991,2]
[392817296,1761990728654,8338.11839346,0.00014866,2]
[392817297,1761990728678,10000.01,0.00014866,2]
[392817298,1761990728700,10000.01,0.00014866,2]
[392817299,1761990728722,10000.01,0.00014866,2]
[392817300,1761990728747,10000.01,0.00014866,2]
[392817301,1761990728773,10000.01,0.00014866,2]
[392817302,1761990728797,10000.01,0.00014866,2]
[392817303,1761990728820,10000.01,0.00014866,2]
[392817304,1761990728842,10000.01,0.00014866,2]
[392817305,1761990739449,-182.02495628,0.0001421,2]
[392817306,1761990740700,-3750.96413038,0.00014866,2]
[392817307,1761990742594,-10000.01,0.00014866,2]
[392817308,1761990742881,-10000.01,0.00014866,2]
[392817309,1761990743017,-10000.01,0.00014866,2]
[392817310,1761990743123,-10000.01,0.00014866,2]
[392817311,1761990743295,-10000.01,0.00014866,2]
[392817312,1761990743410,-10000.01,0.00014866,2]
[392817313,1761990743523,-10000.01,0.00014866,2]
[392817314,1761990743653,-10000.01,0.00014866,2]
[392817315,1761990743763,-4631.30706614,0.00014866,2]
[392817316,1761990743786,-737.39586772,0.00014866,2]
[392817317,1761990762444,500.0,0.00030136,120]
[392817318,1761990762700,500.0,0.0003041,120]
[392817319,1761990762933,500.0,0.00030684,120]
[392817320,1761990763160,500.0,0.00030958,120]
[392817321,1761990763397,500.0,0.00031232,120]
[392817322,1761990763701,500.0,0.00031506,120]
[392817323,1761990769646,3155.5188702,0.00014866,2]
[392817407,1761990791176,453.043582,0.00014873,2]
[392817408,1761990793239,6391.4475478,0.00014355,2]
[392817409,1761990793262,9564.6247522,0.00014355,2]
[392817411,1761990800101,435.3852478,0.0001488,2]
[392817412,1761990800126,64.6147522,0.0001488,2]
[392817413,1761990800343,500.0,0.00026076,120]
[392817414,1761990800720,500.0,0.00028076,120]
[392817416,1761990812663,9935.3952478,0.0001474,2]
[392817417,1761990812685,10000.01,0.0001474,2]
[392817418,1761990812706,10000.01,0.0001474,2]
[392817419,1761990812728,10000.01,0.0001474,2]
[392817420,1761990812750,10000.01,0.0001474,2]
[392817421,1761990812772,10000.01,0.0001474,2]
[392817422,1761990812794,10000.01,0.0001474,2]
[392817423,1761990812819,10000.01,0.0001474,2]
[392817424,1761990812841,10000.01,0.0001474,2]
[392817425,1761990812863,10000.01,0.0001474,2]
[392817426,1761990822025,-10000.01,0.00014355,2]
[392817427,1761990822143,-10000.01,0.00014355,2]
[392817428,1761990822275,-10000.01,0.00014355,2]
[392817429,1761990822550,-10000.01,0.00014355,2]
[392817430,1761990822666,-10000.01,0.00014355,2]
[392817431,1761990822786,-10000.01,0.00014355,2]
[392817432,1761990822896,-10000.01,0.00014355,2]
[392817433,1761990822994,-10000.01,0.00014355,2]
[392817434,1761990824078,-10000.01,0.00014355,2]
[392817435,1761990827102,-10000.01,0.00014355,2]
[392817436,1761990827213,-10000.01,0.00014355,2]
[392817437,1761990827346,-10000.01,0.00014355,2]
[392817438,1761990827455,-10000.01,0.00014355,2]
[392817439,1761990827608,-10000.01,0.00014355,2]
[392817440,1761990827744,-10000.01,0.00014355,2]
[392817441,1761990827850,-10000.01,0.00014355,2]
[392817442,1761990827983,-10000.01,0.00014355,2]
[392817443,1761990828104,-10000.01,0.00014355,2]
[392817444,1761990833147,-10000.01,0.00014355,2]
[392817445,1761990833263,-10000.01,0.00014355,2]
[392817446,1761990833412,-10000.01,0.00014355,2]
[392817447,1761990833524,-10000.01,0.00014355,2]
[392817448,1761990833884,-10000.01,0.00014355,2]
[392817449,1761990833993,-10000.01,0.00014355,2]
[392817450,1761990834145,-1564.409,0.00014355,2]
[392817451,1761990836127,415.9221,0.00014355,2]
[392817452,1761990845293,-500.0,0.00014454,2]
[392817453,1761990853554,500.0,0.00014454,2]
[392817454,1761990854564,2500.0,0.00014355,2]
[392817455,1761990860453,-300.0,0.00014739,2]
[392817456,1761990860481,-300.0,0.00014739,2]
[392817458,1761990875594,-6584.0879,0.0001474,2]
[392817459,1761990875647,-10000.01,0.0001474,2]
[392817460,1761990875774,-10000.01,0.0001474,2]
[392817461,1761990875899,-4767.7710581,0.0001474,2]
[392817462,1761990875922,-464.4678838,0.0001474,2]
[392817464,1761990880896,168.0,0.00014623,2]
[392817465,1761990902267,168.0,0.00014578,2]
[392817466,1761990913591,3126.95,0.00014111,2]
[392817472,1761990939241,175.0,0.000137,2]
[392817473,1761990968229,166.66,0.00014537,2]
[392817474,1761990970202,300.0,0.00014899,2]
[392817475,1761990975656,10000.0,0.000315,120]
[392817476,1761991021822,241.0,0.00014899,2]
[392817477,1761991021886,150.0,0.00014899,2]
[392817478,1761991022471,300.0,0.00014899,2]
[392817480,1761991027633,924.59394857,0.000148,2]
[392817483,1761991032605,924.59394852,0.00014811,2]
[392817484,1761991037662,924.59394852,0.00014822,2]
[392817485,1761991042694,924.59394852,0.00014833,2]
[392817486,1761991047666,924.59394852,0.00014844,2]
[392817487,1761991050356,749.43025735,0.0001485,2]
[392817488,1761991050377,586.52258265,0.0001485,2]
[392817489,1761991052620,924.59394852,0.00014856,2]
[392817490,1761991057730,-420.8788,0.000149,2]
[392817491,1761991057758,-247.28992566,0.000149,2]
[392817492,1761991057814,924.59394852,0.00014867,2]
[392817493,1761991058065,-6059.96206899,0.000149,2]
[392817494,1761991058119,-10000.01,0.000149,2]
[392817495,1761991058134,-1710.96612985,0.000149,2]
[392817496,1761991058144,-646.261,0.000149,2]
[392817497,1761991058153,-7642.78287015,0.000149,2]
[392817498,1761991058177,-10000.01,0.000149,2]
[392817499,1761991058294,-10000.01,0.000149,2]
[392817500,1761991058431,-10000.01,0.000149,2]
[392817501,1761991058528,-10000.01,0.000149,2]
[392817502,1761991058637,-10000.01,0.000149,2]
[392817503,1761991059088,1200.0,0.00014899,2]
[392817504,1761991059556,293.84138919,0.00014873,2]
[392817505,1761991060211,-8506.16861081,0.000149,2]
[392817506,1761991060325,-10000.01,0.000149,2]
[392817507,1761991066270,-924.59394852,0.00014878,2]
[392817508,1761991066304,-8150.82210296,0.000149,2]
[392817509,1761991066404,-10000.01,0.000149,2]
[392817510,1761991066527,-10000.01,0.000149,2]
[392817511,1761991066643,-10000.01,0.000149,2]
[392817512,1761991066771,-10000.01,0.000149,2]
[392817513,1761991066890,-10000.01,0.000149,2]
[392817514,1761991067010,-10000.01,0.000149,2]
[392817515,1761991067118,-10000.01,0.000149,2]
[392817516,1761991069455,-924.59394852,0.00014889,2]
[392817517,1761991085318,522.33926655,0.00030136,120]
[392817518,1761991085810,3573.64,0.00014205,2]
[392817519,1761991092214,300.0,0.00014899,2]
[392817520,1761991114170,168.0,0.00014791,2]
[392817521,1761991119950,168.0,0.00014643,2]
[392817522,1761991127951,168.0,0.00014565,2]
[392817523,1761991141255,287.0,0.00014899,2]
[392817524,1761991141919,166.66666666,0.000148,2]
[392817525,1761991183024,221.6410156,0.00014768,2]
[392817526,1761991183476,893.09678367,0.00014781,2]
[392817527,1761991199502,250.0,0.00014135,2]
[392817528,1761991202111,150.0,0.00014899,2]
[392817529,1761991202465,1200.0,0.00014899,2]
[392817530,1761991202927,300.0,0.00014899,2]
[392817546,1761991297246,500.0,0.00030136,120]
[392817547,1761991297472,500.0,0.0003041,120]
[392817548,1761991297914,500.0,0.00030684,120]
[392817549,1761991297991,500.0,0.00030958,120]
[392817550,1761991298170,500.0,0.00031232,120]
[392817551,1761991298418,500.0,0.00031506,120]
[392817563,1761991332269,610.0,0.00014146,2]
[392817565,1761991339042,1543.96553407,0.00014146,2]
[392817566,1761991339063,8185.25446593,0.00014146,2]
[392817567,1761991341387,248.71531821,0.00014891,2]
[392817716,1761991359069,1200.0,0.00014899,2]
[392817856,1761991371773,366.04021586,0.00014639,2]
[392817857,1761991371796,10000.01,0.00014639,2]
[392817858,1761991371818,10000.01,0.00014639,2]
[392817859,1761991371840,10000.01,0.00014639,2]
[392817860,1761991371863,10000.01,0.00014639,2]
[392817861,1761991371885,5587.20553714,0.00014639,2]
[392817863,1761991381699,150.0,0.00014899,2]
[392817864,1761991385895,760.11,0.00014127,2]
[392817924,1761991412112,200.0,0.00014153,2]
[392817925,1761991421366,150.0,0.00014168,2]
[392817926,1761991421607,150.0,0.00014168,120]
[392817927,1761991433749,1113.29403,0.0001485,2]
[392817928,1761991498063,154.09899142,0.0001489,2]
[392817929,1761991501278,300.0,0.00014899,2]
[392817930,1761991502973,154.09899142,0.00014892,2]
[392817931,1761991507996,154.09899142,0.00014894,2]
[392817932,1761991508474,150.0,0.00013488,2]
[392817933,1761991508531,150.0,0.00013654,2]
[392817934,1761991508590,150.0,0.00013821,2]
[392817935,1761991508662,150.0,0.00013987,2]
[392817936,1761991508730,150.0,0.00014154,2]
[392817937,1761991508800,150.0,0.0001432,2]
[392817938,1761991508874,150.0,0.00014487,2]
[392817939,1761991508946,150.0,0.00014653,2]
[392817940,1761991509020,150.0,0.0001482,2]
[392817941,1761991509207,179.01924798,0.00013488,2]
[392817942,1761991509285,150.0,0.00013488,2]
[392817943,1761991509342,150.0,0.00013488,2]
[392817945,1761991510981,201.13248239,0.00013488,2]
[392817946,1761991512975,154.09899142,0.00014896,2]
[392817947,1761991514703,150.0,0.00013488,2]
[392817948,1761991514741,150.0,0.00013488,2]
[392817949,1761991515042,150.0,0.00013488,2]
[392817950,1761991516518,150.0,0.00013488,2]
[392817951,1761991516715,2155.63,0.00014144,2]
[392817952,1761991517987,154.09899142,0.00014898,2]
[392817953,1761991520908,150.0,0.00013488,2]
[392817954,1761991520942,154.48626728,0.00013488,2]
[392817956,1761991526773,500.0,0.00030136,120]
[392817957,1761991527007,500.0,0.0003041,120]
[392817958,1761991527268,500.0,0.00030684,120]
[392817959,1761991527508,500.0,0.00030958,120]
[392817960,1761991527757,500.0,0.00031232,120]
[392817961,1761991528008,500.0,0.00031506,120]
[392817962,1761991529661,154.24920313,0.00013488,2]
[392817963,1761991529731,155.98502859,0.00013488,2]
[392817964,1761991531064,262.17229457,0.00013488,2]
[392817965,1761991562269,150.0,0.00014899,2]
[392817967,1761991609888,1653.54648896,0.00014132,2]
[392817968,1761991609910,268.19351104,0.00014132,2]
[392817969,1761991611729,2900.0,0.00012808,2]
[392817970,1761991611793,1000.0,0.00012808,2]
[392817971,1761991611832,700.0,0.00012808,2]
[392817972,1761991612306,2900.0,0.00014178,2]
[392817973,1761991612354,1000.0,0.00014178,2]
[392817974,1761991612391,700.0,0.00014178,2]
[392817975,1761991622251,157.77,0.00014132,2]
[392817976,1761991627884,374.04648896,0.00014873,2]
[392817977,1761991627910,125.95351104,0.00014873,2]
[392817978,1761991627980,500.0,0.00014873,2]
[392817979,1761991632427,500.0,0.00014873,2]
[392817980,1761991638114,183.96,0.00011294,2]
[392817981,1761991650269,248.71531821,0.00014891,2]
[392817982,1761991650503,287.72,7.059e-05,2]
[392817983,1761991650696,287.72,7.431e-05,2]
[392817984,1761991650910,287.72,7.802e-05,2]
[392817985,1761991651099,287.72,8.174e-05,2]
[392817986,1761991651296,287.72,8.545e-05,2]
[392817987,1761991651498,287.72,8.917e-05,2]
[392817988,1761991651700,287.72,9.288e-05,2]
[392817989,1761991651897,287.72,9.66e-05,2]
[392817990,1761991652093,287.72,0.00010031,2]
[392817991,1761991652494,287.72,0.00010403,2]
[392817992,1761991652533,287.72,0.00010774,2]
[392817993,1761991652684,287.72,0.00011146,2]
[392817994,1761991652881,287.72,0.00011517,2]
[392817995,1761991653091,287.72,0.00011889,2]
[392817996,1761991653495,287.72,0.0001226,2]
[392817997,1761991653695,287.72,0.00012632,2]
[392817998,1761991653901,287.72,0.00013004,2]
[392817999,1761991654107,287.72,0.00013375,2]
[392818000,1761991654435,287.72,0.00013747,2]
[392818001,1761991654637,287.72,0.00014118,2]
[392818002,1761991659216,856.0,0.00014899,2]
[392818003,1761991669169,221.6410156,0.00014734,2]
[392818004,1761991671266,302.94861243,0.00014597,2]
[392818005,1761991672400,150.12458609,0.00014873,2]
[392818006,1761991674538,500.0,0.00014873,2]
[392818007,1761991683052,500.0,0.00030136,120]
[392818008,1761991683284,500.0,0.0003041,120]
[392818009,1761991683549,500.0,0.00030684,120]
[392818010,1761991683786,500.0,0.00030958,120]
[392818011,1761991684024,500.0,0.00031232,120]
[392818012,1761991684278,181.39202044,0.00031506,120]
[392818014,1761991715390,170.0541206,0.00014639,2]
[392818016,1761991741739,150.0,0.00014899,2]
[392818017,1761991751893,336.21283603,0.00013699,2]
[392818018,1761991751916,464.27716397,0.00013699,2]
[392818022,1761991775945,500.0,0.00030136,120]
[392818023,1761991776178,500.0,0.0003041,120]
[392818024,1761991776416,500.0,0.00030684,120]
[392818025,1761991776903,500.0,0.00030958,120]
[392818026,1761991776959,500.0,0.00031232,120]
[392818027,1761991777119,500.0,0.00031506,120]
[392818046,1761991793856,279.5419,0.000148,2]
[392818048,1761991804139,300.0,0.00014899,2]
[392818049,1761991806455,1200.0,0.00014899,2]
[392818050,1761991813099,1000.0,0.00014131,2]
[392818051,1761991824236,927.74502,0.0001485,2]
[392818055,1761991831874,-5252.49056302,0.000149,2]
[392818056,1761991831886,-20222.56936224,0.000149,2]
[392818057,1761991831897,-1628.94441831,0.000149,2]
[392818058,1761991831908,-950.26546194,0.000149,2]
[392818059,1761991831919,-1326.32130662,0.000149,2]
[392818060,1761991831940,-1531.77238491,0.000149,2]
[392818061,1761991831951,-414.9125,0.000149,2]
[392818062,1761991831981,-420.26169723,0.000149,2]
[392818063,1761991832036,-1366.23,0.000149,2]
[392818064,1761991832144,-22961.7146641,0.000149,2]
[392818067,1761991832159,-628.42,0.000149,2]
[392818664,1761991837979,-65239.91255771,0.000149,2]
[392818666,1761991837989,-1000.0,0.000149,2]
[392818668,1761991837999,-187.63898956,0.000149,2]
[392818670,1761991838009,-154.09899142,0.000149,2]
[392818672,1761991838018,-338.24618963,0.000149,2]
[392818674,1761991838028,-840.48808242,0.000149,2]
[392818676,1761991838037,-155.03529215,0.000149,2]
[392818678,1761991838047,-250.0,0.00014906,2]
[392818680,1761991838057,-157.77,0.00014917,2]
[392818682,1761991838066,-250.0,0.00014928,2]
[392818684,1761991838077,-500.0,0.00014973,2]
[392818686,1761991838086,-643.8005641,0.00014973,2]
[392818688,1761991838095,-500.0,0.00014973,2]
[392818690,1761991838105,-500.0,0.00014973,2]
[392818692,1761991838114,-500.0,0.00014973,2]
[392818695,1761991838128,-153.47403075,0.00014973,2]
[392818697,1761991838137,-500.0,0.00014973,2]
[392818699,1761991838147,-500.0,0.00014973,2]
[392818701,1761991838156,-500.0,0.00014973,2]
[392818702,1761991838166,-500.63233885,0.00014973,2]
[392818705,1761991838177,-500.0,0.00014973,2]
[392818707,1761991838188,-342.84639252,0.00014973,2]
[392818709,1761991838202,-637.0,0.00014975,2]
[392818711,1761991838212,-150.0,0.00014986,2]
[392818713,1761991838222,-192.41993,0.00014986,2]
[392818715,1761991838231,-156.7604615,0.00014986,2]
[392818717,1761991838242,-500.0,0.00014989,2]
[392818719,1761991838251,-500.0,0.00014989,2]
[392818721,1761991838261,-500.0,0.00014989,2]
[392818723,1761991838274,-500.0,0.00014989,2]
[392818725,1761991838284,-500.0,0.00014989,2]
[392818727,1761991838294,-423.09282658,0.00014989,2]
[392818729,1761991838304,-3420.0,0.0001499,2]
[392818731,1761991838314,-825.729,0.0001499,2]
[392818733,1761991838323,-628.011,0.0001499,2]
[392818735,1761991838336,-573.0,0.0001499,2]
[392818737,1761991838345,-1441.099,0.0001499,2]
[392818739,1761991838355,-1594.0,0.0001499,2]
[392818741,1761991838364,-1272.0,0.0001499,2]
[392818743,1761991838374,-819.0,0.0001499,2]
[392818745,1761991838383,-1187.0,0.0001499,2]
[392818748,1761991838393,-905.0,0.0001499,2]
[392818750,1761991838403,-559.0,0.0001499,2]
[392818752,1761991838412,-6652.0,0.0001499,2]
[392818754,1761991838422,-1152.0,0.0001499,2]
[392818756,1761991838431,-2188.503,0.0001499,2]
[392818758,1761991838441,-6468.0,0.0001499,2]
[392818760,1761991838450,-7411.4675647,0.0001499,2]
[392818762,1761991838459,-1584.16,0.0001499,2]
[392818764,1761991838468,-1123.6,0.0001499,2]
[392818766,1761991838477,-9999.99,0.0001499,2]
[392818768,1761991838486,-344.39,0.0001499,2]
[392818770,1761991838495,-10600.7,0.0001499,2]
[392818772,1761991838504,-9999.99,0.0001499,2]
[392818774,1761991838514,-9999.99,0.0001499,2]
[392818776,1761991838524,-9999.99,0.0001499,2]
[392818778,1761991838537,-999.99,0.0001499,2]
[392818780,1761991838547,-150.99,0.0001499,2]
[392818782,1761991838556,-499.99,0.0001499,2]
[392818784,1761991838565,-67224.63,0.0001499,2]
[392818786,1761991838575,-3651.45,0.0001499,2]
[392818788,1761991838585,-4924.48,0.0001499,2]
[392818790,1761991838595,-293.91,0.0001499,2]
[392818792,1761991838604,-1073.8,0.0001499,2]
[392818794,1761991838614,-364.57,0.0001499,2]
[392818796,1761991838624,-150.99,0.0001499,2]
[392818818,1761991838877,-57017.33,0.0001499,2]
[392818820,1761991838887,-508.23,0.0001499,2]
[392818822,1761991838896,-322.6107,0.00014991,2]
[392818824,1761991838905,-514.84070869,0.00014991,2]
[392818826,1761991838915,-151.0,0.00014991,2]
[392818828,1761991838924,-168.0,0.00014992,2]
[392818830,1761991838933,-184.30041625,0.00014999,2]
[392818832,1761991838942,-500.0,0.00014999,2]
[392818834,1761991838952,-500.0,0.00014999,2]
[392818836,1761991838961,-516.00192321,0.00014999,2]
[392818838,1761991838970,-211.37583249,0.00014999,2]
[392818840,1761991838979,-500.0,0.00014999,2]
[392818841,1761991838989,-155.0,0.00014999,2]
[392818843,1761991838999,-500.0,0.00014999,2]
[392818845,1761991839010,-150.0,0.00014999,2]
[392818848,1761991839019,-150.0,0.00014999,2]
[392818850,1761991839028,-150.0,0.00014999,2]
[392818852,1761991839046,-150.0,0.00014999,2]
[392818855,1761991839057,-150.0,0.00014999,2]
[392818857,1761991839067,-150.0,0.00014999,2]
[392818859,1761991839076,-500.0,0.00014999,2]
[392818861,1761991839086,-500.0,0.00014999,2]
[392818863,1761991839096,-150.0,0.00014999,2]
[392818865,1761991839105,-500.0,0.00014999,2]
[392818867,1761991839114,-150.0,0.00014999,2]
[392818869,1761991839124,-3787.0,0.00015,2]
[392818871,1761991839133,-17562.42105169,0.00015,2]
[392818873,1761991839143,-500.99,0.00015,2]
[392818875,1761991839152,-500.0,0.00015,2]
[392818877,1761991839161,-500.0,0.00015,2]